[Event "World Junior U20 Open 2018"]
[Site "Gebze"]
[Date "2018.09.07"]
[Round "3.48"]
[White "Nyambileg, Erdene-Ochir"]
[Black "Krishna Teja, N."]
[Result "1/2-1/2"]
[ECO "E73"]
[WhiteElo "1798"]
[BlackElo "2356"]
[Annotator "NA"]
[PlyCount "88"]
[EventDate "2018.09.05"]
[EventType "swiss"]
[EventCountry "TUR"]
[SourceTitle "playchess.com"]
[Source "ChessBase"]
[SourceQuality "1"]
[TimeControl "40/5400+30:1800+30"]

1. d4 {[%emt 0:00:30]} Nf6 {[%emt 0:00:30]} 2. c4 {[%emt 0:00:30]} g6 {[%emt 0:00:30]} 3. Nc3 {[%emt 0:00:30]} Bg7 {[%emt 0:00:00]} 4. e4 {[%emt 0:00:00]} d6 {[%emt 0:00:00]} 5. Be2 {[%emt 0:00:00]} O-O {[%emt 0:00:00]} 6. Be3 {[%emt 0:00:00] LiveBook: 737 Games} c6 {[%emt 0:02:00]} 7. g4 {[%emt 0:00:00] E73: King's Indian: Averbakh Variation without 6...c5} (7. Nf3 e5 8. dxe5 dxe5 9. O-O Qe7 10. h3 Na6 11. Qc2 Nh5 12. Rfd1 Nf4 13. Bf1 Nc5 14. b4 Nce6 15. c5 a5 16. b5 Qf6 17. bxc6 bxc6 18. Rd6 Nxh3+ {1-0 (40) Carlsen,M (2832)-Guseinov,G (2645) chess.com INT 2017}) 7... Qa5 {[%emt 0:03:30]} 8. f3 {[%emt 0:00:30]} e5 {[%emt 0:04:30]} 9. d5 {[%emt 0:01:30]} c5 {[%emt 0:08:30]} 10. Qd2 {[%emt 0:04:30]} Ne8 $146 {[%emt 0:05:30]} ({Predecessor:} 10... a6 11. Bh6 Qd8 12. h4 Ne8 13. Bxg7 Nxg7 14. O-O-O h5 {0-1 (54) Jeszenszky,J-Illes,A (2111) Hungary 2010}) 11. Nh3 {[%emt 0:13:30]} f6 {[%emt 0:07:30]} (11... Nd7 $16 12. O-O Qd8) 12. Nf2 {[%emt 0:01:30]} Na6 {[%emt 0:01:30]} 13. h4 {[%emt 0:04:30]} Rf7 {[%emt 0:02:30]} 14. f4 {[%emt 0:12:30]} exf4 {[%emt 0:03:30]} 15. Bxf4 {[%emt 0:00:30]} Nb8 {[%emt 0:01:30]} 16. Nd3 {[%emt 0:09:30]} Nd7 {[%emt 0:02:30]} 17. g5 {[%emt 0:00:30]} Ne5 $2 {[%emt 0:04:30]} (17... Nb6 $15 18. Nf2 fxg5 19. Bxg5 Qb4) 18. Nxe5 {[%emt 0:01:30]} fxe5 {[%emt 0:01:30]} 19. Bg3 {[%emt 0:04:30]} Bd7 {[%emt 0:02:30]} 20. Nd1 {[%emt 0:02:30]} Qxd2+ {[%emt 0:08:30]} 21. Kxd2 {[%emt 0:00:30]} h5 {[%emt 0:00:00]} 22. Nc3 {[%emt 0:11:30]} Nc7 {[%emt 0:02:00]} 23. a3 $16 {[%emt 0:00:30]} b6 {[%emt 0:08:30]} 24. b4 {[%emt 0:00:30]} Na6 {[%emt 0:10:30]} 25. Rab1 {[%emt 0:00:30]} Rc8 {[%emt 0:01:34]} 26. Nb5 {[%emt 0:01:30]} Bxb5 {[%emt 0:01:48]} 27. cxb5 {[%emt 0:00:30]} Nb8 {[%emt 0:05:20]} 28. Rhc1 {[%emt 0:01:30]} Rfc7 {[%emt 0:02:44]} 29. Bf1 {[%emt 0:06:30]} cxb4 {[%emt 0:02:21]} 30. Rxc7 {[%emt 0:00:00]} Rxc7 {[%emt 0:00:04]} 31. axb4 {[%emt 0:06:01]} Kf8 {[%emt 0:03:38]} 32. Bh3 {[%emt 0:00:30]} Ke8 {[%emt 0:00:23]} 33. Be6 {[%emt 0:02:17]} Nd7 {[%emt 0:00:24]} 34. Bf2 {[%emt 0:02:21]} Nf8 {[%emt 0:00:31]} 35. Bh3 {[%emt 0:00:03]} Nd7 {[%emt 0:01:13]} 36. Kd3 {[%emt 0:00:15]} Nf8 {[%emt 0:00:00]} 37. Ra1 {[%emt 0:00:30]} Nd7 {[%emt 0:00:17]} 38. Be3 {[%emt 0:00:38]} Bf8 {[%emt 0:00:56]} 39. Be6 {[%emt 0:00:55]} Bg7 {[%emt 0:00:10]} 40. Ra6 {[%emt 0:00:00]} Rb7 {[%emt 0:00:00]} 41. Kc4 {[%emt 0:05:30]} Rc7+ {[%emt 0:03:07]} 42. Kb3 {[%emt 0:00:30]} Rb7 {[%emt 0:00:00]} 43. Ra2 {[%emt 0:00:00]} Rc7 {[%emt 0:00:00]} 44. Rf2 {[%emt 0:00:00]} Nf8 {[%emt 0:00:00]} 1/2-1/2

[Event "World Junior U20 Open 2018"]
[Site "Gebze"]
[Date "2018.09.07"]
[Round "3.49"]
[White "Schekachikhin, Maksim"]
[Black "Karaoglan, Doruk"]
[Result "1-0"]
[ECO "E94"]
[WhiteElo "2356"]
[BlackElo "2196"]
[Annotator "NA"]
[PlyCount "100"]
[EventDate "2018.09.05"]
[EventType "swiss"]
[EventCountry "TUR"]
[SourceTitle "playchess.com"]
[Source "ChessBase"]
[SourceQuality "1"]
[TimeControl "40/5400+30:1800+30"]

1. d4 {[%emt 0:00:30]} Nf6 {[%emt 0:00:30]} 2. c4 {[%emt 0:00:30]} g6 {[%emt 0:00:00]} 3. Nc3 {[%emt 0:00:00]} Bg7 {[%emt 0:00:00]} 4. e4 {[%emt 0:00:00]} d6 {[%emt 0:00:30]} 5. Be2 {[%emt 0:00:00]} O-O {[%emt 0:00:00]} 6. Nf3 {[%emt 0:00:00]} e5 {[%emt 0:00:00]} 7. O-O {[%emt 0:00:30]} exd4 {[%emt 0:00:30]} 8. Nxd4 {[%emt 0:00:30]} Re8 {[%emt 0:00:00]} 9. f3 {[%emt 0:00:00]} Nc6 {[%emt 0:00:00]} 10. Be3 {[%emt 0:00:00]} Nh5 {[%emt 0:00:00]} 11. Qd2 {[%emt 0:00:30]} Nxd4 {[%emt 0:00:00]} 12. Bxd4 {[%emt 0:00:30]} Nf4 {[%emt 0:00:00]} 13. Rf2 {[%emt 0:03:30] E94: King's Indian: Classical: 6 Be2 e5 7 0-0: Various Black 7th moves} Bxd4 {[%emt 0:19:00]} 14. Qxd4 {[%emt 0:02:30]} Qg5 {[%emt 0:04:30]} 15. Nd5 {[%emt 0:00:30]} Nxd5 {[%emt 0:00:30]} 16. cxd5 {[%emt 0:00:30]} f5 $146 {[%emt 0:03:30]} ({Predecessor:} 16... Bd7 17. Bf1 a6 18. Rc2 Rec8 19. a4 c5 20. dxc6 Rxc6 21. Rxc6 Bxc6 {½-½ (46) Arizmendi Martinez,J (2528)-Dimitrov,A (2345) Belgrade 2009}) 17. Bb5 {[%emt 0:07:30]} Re7 {[%emt 0:12:30]} 18. f4 {[%emt 0:03:30]} Qh6 {[%emt 0:06:30]} 19. e5 {[%emt 0:02:30]} Qg7 {[%emt 0:00:30]} 20. Re1 {[%emt 0:04:30]} a6 {[%emt 0:02:30]} 21. Ba4 {[%emt 0:01:30]} b5 {[%emt 0:02:30]} 22. Bb3 {[%emt 0:00:30]} Bb7 {[%emt 0:03:30]} 23. Rfe2 {[%emt 0:03:30]} Rae8 {[%emt 0:01:30]} 24. a4 {[%emt 0:06:30]} bxa4 {[%emt 0:07:30]} 25. Bxa4 {[%emt 0:01:30]} Rd8 {[%emt 0:00:30]} 26. Qc4 {[%emt 0:04:30]} Kh8 {[%emt 0:08:30]} 27. e6 {[%emt 0:09:30]} Rb8 {[%emt 0:01:30]} 28. Bd7 {[%emt 0:03:30]} Rg8 $18 {[%emt 0:02:30]} 29. Rd2 {[%emt 0:03:30]} Bc8 {[%emt 0:03:30]} 30. Bxc8 {[%emt 0:01:30]} Rxc8 {[%emt 0:00:30]} 31. Qxa6 {[%emt 0:00:30]} Rb8 {[%emt 0:00:00]} 32. Qa7 {[%emt 0:01:30]} Rb4 {[%emt 0:00:00]} 33. g3 {[%emt 0:02:30]} h6 {[%emt 0:02:30]} 34. Qa3 {[%emt 0:01:30]} Rb5 {[%emt 0:00:30]} 35. Rc1 {[%emt 0:02:30]} Kh7 {[%emt 0:02:49]} 36. Rc4 {[%emt 0:04:30]} Kg8 {[%emt 0:06:58]} 37. b4 {[%emt 0:04:30]} Qf8 {[%emt 0:03:33]} 38. Qc3 {[%emt 0:01:30]} Qg7 {[%emt 0:00:05]} 39. Qc1 {[%emt 0:01:30]} g5 {[%emt 0:04:06]} 40. Qc2 {[%emt 0:00:00]} Qh7 {[%emt 0:00:00]} 41. Qd3 {[%emt 0:05:00]} Rb8 {[%emt 0:02:59]} 42. Ra2 {[%emt 0:02:30]} g4 {[%emt 0:01:30]} 43. Ra7 {[%emt 0:01:30]} h5 {[%emt 0:00:00]} 44. Qc2 {[%emt 0:03:30]} Rc8 {[%emt 0:01:00]} 45. b5 {[%emt 0:00:30]} c5 {[%emt 0:01:30]} 46. Rxe7 {[%emt 0:01:30]} Qxe7 {[%emt 0:00:30]} 47. Qxf5 {[%emt 0:00:30]} Qa7 {[%emt 0:00:00]} 48. e7 {[%emt 0:00:30]} Qa1+ {[%emt 0:00:00]} 49. Kg2 {[%emt 0:00:00]} Ra8 {[%emt 0:00:30]} 50. Qg6+ {[%emt 0:00:00]} Kh8 {[%emt 0:00:30]} 1-0

[Event "World Junior U20 Open 2018"]
[Site "Gebze"]
[Date "2018.09.07"]
[Round "3.50"]
[White "Akin, Kadir"]
[Black "Arcuti, Davide"]
[Result "1/2-1/2"]
[ECO "C56"]
[WhiteElo "1974"]
[BlackElo "2356"]
[Annotator "NA"]
[PlyCount "89"]
[EventDate "2018.09.05"]
[EventType "swiss"]
[EventCountry "TUR"]
[SourceTitle "playchess.com"]
[Source "ChessBase"]
[SourceQuality "1"]
[TimeControl "40/5400+30:1800+30"]

1. e4 {[%emt 0:00:30]} e5 {[%emt 0:00:30]} 2. Nf3 {[%emt 0:00:30]} Nc6 {[%emt 0:00:30]} 3. d4 {[%emt 0:00:00]} exd4 {[%emt 0:00:30]} 4. Bc4 {[%emt 0:00:00]} Nf6 {[%emt 0:01:30]} 5. O-O {[%emt 0:00:30]} Nxe4 {[%emt 0:03:30]} 6. Re1 {[%emt 0:00:30]} d5 {[%emt 0:00:30]} 7. Bxd5 {[%emt 0:00:30]} Qxd5 {[%emt 0:00:30]} 8. Nc3 {[%emt 0:00:00]} Qd7 {[%emt 0:00:00] C56: Two Knights: 4 d4 exd4 5 0-0 Nxe4} (8... Qh5 9. Nxe4 Be6 10. Bg5 Bd6 11. Nxd6+ cxd6 12. Bf4 Qd5 13. c3 O-O 14. Nxd4 Nxd4 15. Qxd4 Qxd4 16. cxd4 d5 17. Rac1 Rfc8 18. Rxc8+ Rxc8 19. Rc1 Rxc1+ 20. Bxc1 f6 21. Bf4 a6 22. a3 Bd7 23. Bd2 Bc6 24. Bc3 Bd7 25. Bd2 Bc6 26. Bc3 Bd7 27. Bd2 {½-½ (27) Wei,Y (2743)-Wen,Y (2605) Shenzhen 2017}) 9. Rxe4+ {[%emt 0:02:00]} Be7 {[%emt 0:00:00]} 10. Nb5 {[%emt 0:04:30]} O-O {[%emt 0:03:30]} 11. Bf4 {[%emt 0:13:30]} Bd8 {[%emt 0:00:30]} 12. Nbxd4 {[%emt 0:04:30]} Bf6 {[%emt 0:20:30]} 13. c3 {[%emt 0:06:30]} Nxd4 {[%emt 0:05:30]} 14. Nxd4 {[%emt 0:01:30]} c5 $146 {[%emt 0:02:30]} ({Predecessor:} 14... b6 15. Nf3 Qf5 16. Qd3 {0-1 (29) Petersson,B (2074)-Ruecker,B (2275) Stockholm 2017}) 15. Nf3 {[%emt 0:02:30]} Qxd1+ {[%emt 0:12:30]} 16. Rxd1 {[%emt 0:00:30]} Be6 {[%emt 0:00:30]} 17. a3 {[%emt 0:02:30]} Rfd8 {[%emt 0:03:30]} 18. Ree1 {[%emt 0:03:30]} h6 {[%emt 0:02:30]} 19. Ne5 {[%emt 0:01:30]} Rxd1 {[%emt 0:06:30]} 20. Rxd1 {[%emt 0:00:00]} Re8 {[%emt 0:00:00]} 21. Nf3 {[%emt 0:04:00]} b5 {[%emt 0:08:00]} 22. Be3 {[%emt 0:00:30]} Rc8 $11 {[%emt 0:01:30]} 23. Rd6 {[%emt 0:02:30]} a5 {[%emt 0:06:30]} 24. Rb6 {[%emt 0:02:30]} b4 {[%emt 0:03:37]} 25. axb4 {[%emt 0:00:30]} axb4 {[%emt 0:00:03]} 26. Rb5 {[%emt 0:04:30]} Be7 {[%emt 0:02:13]} 27. h3 {[%emt 0:01:30]} b3 {[%emt 0:01:35]} 28. Nd2 {[%emt 0:01:30]} c4 {[%emt 0:01:12]} 29. Ra5 {[%emt 0:00:30]} Kf8 {[%emt 0:07:59]} 30. Kf1 {[%emt 0:00:30]} Ke8 {[%emt 0:00:57]} 31. Ke2 {[%emt 0:00:00]} Kd7 {[%emt 0:02:00]} 32. Bd4 {[%emt 0:00:00]} g6 {[%emt 0:01:06]} 33. Ne4 {[%emt 0:00:30]} Bf5 {[%emt 0:01:24]} 34. Ke3 {[%emt 0:02:30]} Bg5+ {[%emt 0:02:10]} 35. Nxg5 {[%emt 0:00:30]} hxg5 {[%emt 0:00:02]} 36. Ra7+ {[%emt 0:01:30]} Ke8 {[%emt 0:00:47]} 37. Bf6 {[%emt 0:00:30]} g4 {[%emt 0:00:44]} 38. h4 {[%emt 0:00:00]} Rc6 {[%emt 0:00:51]} 39. Bd4 {[%emt 0:02:00]} Re6+ {[%emt 0:00:50]} 40. Kd2 {[%emt 0:00:00]} Be4 {[%emt 0:00:00]} 41. g3 {[%emt 0:00:00]} Bd3 {[%emt 0:05:30]} 42. Be3 {[%emt 0:00:30]} Rd6 {[%emt 0:00:30]} 43. Bd4 {[%emt 0:00:30]} Re6 {[%emt 0:00:30]} 44. Be3 {[%emt 0:00:00]} Rd6 {[%emt 0:00:30]} 45. Bd4 {[%emt 0:00:00]} 1/2-1/2

[Event "World Junior U20 Open 2018"]
[Site "Gebze"]
[Date "2018.09.07"]
[Round "3.51"]
[White "Sawlin, Leonid"]
[Black "Tarlabasi, Emirhan"]
[Result "0-1"]
[ECO "C17"]
[WhiteElo "2355"]
[BlackElo "2193"]
[Annotator "NA"]
[PlyCount "112"]
[EventDate "2018.09.05"]
[EventType "swiss"]
[EventCountry "TUR"]
[SourceTitle "playchess.com"]
[Source "ChessBase"]
[SourceQuality "1"]
[TimeControl "40/5400+30:1800+30"]

1. e4 {[%emt 0:00:30]} e6 {[%emt 0:00:30]} 2. d4 {[%emt 0:00:30]} d5 {[%emt 0:00:30]} 3. Nc3 {[%emt 0:00:00]} Bb4 {[%emt 0:00:30]} 4. e5 {[%emt 0:00:00]} c5 {[%emt 0:00:00]} 5. Bd2 {[%emt 0:01:30]} Ne7 {[%emt 0:07:00]} 6. Nb5 {[%emt 0:00:30]} Bxd2+ {[%emt 0:01:30]} 7. Qxd2 {[%emt 0:00:30]} O-O {[%emt 0:00:30]} 8. c3 {[%emt 0:03:30]} b6 {[%emt 0:00:30]} 9. Nf3 {[%emt 0:00:30] C17: French: 3 Nc3 Bb4 4 e5 c5 sidelines} Ba6 {[%emt 0:05:30]} 10. Be2 {[%emt 0:06:30]} (10. a4 Nbc6 11. b4 Nf5 12. Bd3 Nh4 13. Nxh4 Qxh4 14. O-O cxd4 {0-1 (26) Stocek,J (2546)-Vallejo Pons,F (2711) Tallinn 2016}) 10... Qd7 {[%emt 0:03:30]} 11. a4 {[%emt 0:02:30]} Nbc6 {[%emt 0:01:30]} 12. b4 {[%emt 0:02:30]} cxb4 {[%emt 0:05:30]} 13. cxb4 {[%emt 0:00:00]} Bb7 $146 {[%emt 0:03:30]} ({Predecessor:} 13... f6 14. O-O fxe5 15. Nxe5 Nxe5 16. dxe5 Bxb5 17. Bxb5 {0-1 (32) Sidorov,A (2370)-Poliakov,A (2268) St Petersburg 2001}) 14. a5 {[%emt 0:16:00]} bxa5 $1 {[%emt 0:05:30]} 15. bxa5 {[%emt 0:00:30]} Ba6 {[%emt 0:00:30]} 16. O-O {[%emt 0:00:30]} Rab8 {[%emt 0:03:30]} 17. Rfb1 {[%emt 0:08:30]} Rb7 {[%emt 0:05:30]} 18. Nc3 {[%emt 0:03:30]} Bxe2 {[%emt 0:05:30]} 19. Rxb7 {[%emt 0:07:30]} Qxb7 {[%emt 0:01:30]} 20. Qxe2 {[%emt 0:02:30]} Qb4 {[%emt 0:05:30]} 21. Qd3 {[%emt 0:05:30]} Nxa5 {[%emt 0:04:30]} 22. Ng5 {[%emt 0:05:30]} Ng6 $17 {[%emt 0:05:30]} 23. h4 {[%emt 0:01:30]} Qc4 {[%emt 0:06:30]} 24. Qxc4 {[%emt 0:08:30]} Nxc4 {[%emt 0:00:30]} 25. Rxa7 {[%emt 0:03:49]} Nxh4 {[%emt 0:00:30]} 26. g3 {[%emt 0:00:21]} Nf5 {[%emt 0:02:30]} 27. Nf3 {[%emt 0:00:20]} h5 {[%emt 0:08:55]} 28. Ne2 {[%emt 0:00:33]} g6 {[%emt 0:03:13]} 29. Ng5 {[%emt 0:00:44]} Nd2 {[%emt 0:01:29]} 30. Rb7 {[%emt 0:00:37]} Ne4 {[%emt 0:02:02]} 31. Nxe4 {[%emt 0:02:07]} dxe4 {[%emt 0:00:53]} 32. Rd7 {[%emt 0:05:03]} Rc8 {[%emt 0:01:35]} 33. d5 {[%emt 0:00:49]} exd5 {[%emt 0:00:34]} 34. Rxd5 {[%emt 0:01:33]} e3 {[%emt 0:01:42]} 35. fxe3 {[%emt 0:04:57]} Nxe3 {[%emt 0:00:39]} 36. Rd3 {[%emt 0:00:44]} Ng4 {[%emt 0:01:05]} 37. e6 {[%emt 0:02:24]} fxe6 {[%emt 0:00:31]} 38. Rd7 {[%emt 0:00:05]} e5 {[%emt 0:00:14]} 39. Kg2 {[%emt 0:00:23]} Rc2 {[%emt 0:01:22]} 40. Kf1 {[%emt 0:00:00]} g5 {[%emt 0:00:00]} 41. Ng1 {[%emt 0:07:01]} e4 {[%emt 0:20:25]} 42. Rd4 {[%emt 0:07:30]} Nh2+ {[%emt 0:09:29]} 43. Ke1 {[%emt 0:00:30]} Rc1+ {[%emt 0:00:45]} 44. Kf2 {[%emt 0:00:30]} e3+ {[%emt 0:00:28]} 45. Kxe3 {[%emt 0:01:30]} Rxg1 {[%emt 0:00:34]} 46. Kf2 {[%emt 0:00:30]} Ra1 {[%emt 0:00:52]} 47. Rd5 {[%emt 0:00:30]} Ra2+ {[%emt 0:00:00]} 48. Ke3 {[%emt 0:00:30]} Ra3+ {[%emt 0:00:13]} 49. Kf2 {[%emt 0:00:30]} Ng4+ {[%emt 0:00:21]} 50. Ke2 {[%emt 0:00:00]} Kh7 {[%emt 0:00:26]} 51. Rxg5 {[%emt 0:02:00]} Kh6 {[%emt 0:00:30]} 52. Rg8 {[%emt 0:00:00]} Rxg3 {[%emt 0:00:12]} 53. Rh8+ {[%emt 0:00:00]} Kg5 {[%emt 0:00:30]} 54. Rg8+ {[%emt 0:00:30]} Kh4 {[%emt 0:00:00]} 55. Rh8 {[%emt 0:00:30]} Re3+ {[%emt 0:00:00]} 56. Kf1 {[%emt 0:00:00]} Kg3 {[%emt 0:00:10]} 0-1

[Event "World Junior U20 Open 2018"]
[Site "Gebze"]
[Date "2018.09.07"]
[Round "3.52"]
[White "Galperin, Platon"]
[Black "Gulden, Egemen"]
[Result "1-0"]
[ECO "E15"]
[WhiteElo "2348"]
[BlackElo "2068"]
[Annotator "NA"]
[PlyCount "63"]
[EventDate "2018.09.05"]
[EventType "swiss"]
[EventCountry "TUR"]
[SourceTitle "playchess.com"]
[Source "ChessBase"]
[SourceQuality "1"]
[TimeControl "40/5400+30:1800+30"]

1. d4 {[%emt 0:00:30]} Nf6 {[%emt 0:00:30]} 2. c4 {[%emt 0:00:30]} e6 {[%emt 0:00:00]} 3. Nf3 {[%emt 0:00:00]} b6 {[%emt 0:00:00]} 4. g3 {[%emt 0:00:00]} Ba6 {[%emt 0:00:30]} 5. b3 {[%emt 0:01:30]} Bb4+ {[%emt 0:00:30]} 6. Bd2 {[%emt 0:00:00]} Be7 {[%emt 0:00:30]} 7. Bg2 {[%emt 0:00:00]} c6 {[%emt 0:00:30]} 8. Bc3 {[%emt 0:00:30]} d5 {[%emt 0:00:30]} 9. Ne5 {[%emt 0:05:30]} Ne4 {[%emt 0:04:30] E15: Queen's Indian: 4 g3 sidelines, 4 g3 Ba6 and 4 g3 Bb7 early deviations} (9... Nfd7 10. Nd3 dxc4 11. Nb4 cxb3 12. Nxa6 Nxa6 13. O-O Nb4 14. Qxb3 Nd5 15. Bb2 O-O 16. e4 N5f6 17. Nd2 {0-1 (47) Korobov,A (2695)-Zhigalko,S (2639) Dubai 2017}) 10. Bxe4 {[%emt 0:02:30]} dxe4 {[%emt 0:00:00]} 11. Nd2 {[%emt 0:05:30]} f6 {[%emt 0:01:00]} 12. Ng4 {[%emt 0:01:30]} Bb7 $146 {[%emt 0:01:30]} ({Predecessor:} 12... Nd7 13. Ne3 Bb7 14. Nxe4 O-O 15. f3 f5 16. Nf2 Qc7 17. Qc2 {1-0 (52) Kelecevic,N (2359)-Vezzosi,P (2298) Switzerland 2008}) 13. c5 {[%emt 0:16:30]} f5 {[%emt 0:22:30]} 14. Ne3 {[%emt 0:04:30]} bxc5 {[%emt 0:00:30]} 15. dxc5 {[%emt 0:00:30]} Bxc5 {[%emt 0:00:30]} 16. Bxg7 {[%emt 0:01:30]} Rg8 {[%emt 0:00:00]} 17. Bc3 {[%emt 0:02:30]} Bxe3 {[%emt 0:00:00]} 18. fxe3 {[%emt 0:00:30]} Ba6 {[%emt 0:00:30]} 19. Qc2 {[%emt 0:07:30]} Nd7 {[%emt 0:02:30]} 20. Bb2 {[%emt 0:02:30]} Qc7 {[%emt 0:03:30]} 21. Nc4 {[%emt 0:00:30]} Bxc4 {[%emt 0:00:30]} 22. Qxc4 {[%emt 0:01:30]} Rg6 {[%emt 0:00:00]} 23. O-O-O {[%emt 0:04:30]} h5 {[%emt 0:07:00]} 24. Rd2 {[%emt 0:02:30]} Nb6 {[%emt 0:02:30]} 25. Qc3 {[%emt 0:09:30]} Rh6 {[%emt 0:02:30] [#]} 26. Rhd1 $1 {[%emt 0:00:00]} Nd5 {[%emt 0:03:30] [#]} 27. Rxd5 $1 {[%emt 0:00:00]} exd5 $18 {[%emt 0:00:30]} (27... Rd8 $2 {[%emt 0:00:30]}) 28. Rxd5 $18 {[%emt 0:00:30]} Rd8 {[%emt 0:00:30]} (28... Rh7 29. Re5+ (29. Rxf5 O-O-O $16) 29... Kd7) 29. Re5+ {[%emt 0:00:30]} Kd7 {[%emt 0:00:30]} 30. Re7+ {[%emt 0:00:30]} Kxe7 {[%emt 0:00:30]} 31. Qg7+ {[%emt 0:00:30]} Kd6 {[%emt 0:00:30]} 32. Be5+ {[%emt 0:00:30]} 1-0

[Event "World Junior U20 Open 2018"]
[Site "Gebze"]
[Date "2018.09.07"]
[Round "3.53"]
[White "Ozen, Bahadir"]
[Black "Aydincelebi, Kagan"]
[Result "1-0"]
[ECO "A40"]
[WhiteElo "2326"]
[BlackElo "2060"]
[Annotator "NA"]
[PlyCount "159"]
[EventDate "2018.09.05"]
[EventType "swiss"]
[EventCountry "TUR"]
[SourceTitle "playchess.com"]
[Source "ChessBase"]
[SourceQuality "1"]
[TimeControl "40/5400+30:1800+30"]

1. g3 {[%emt 0:00:30]} c5 {[%emt 0:00:30]} 2. Bg2 {[%emt 0:01:30]} g6 {[%emt 0:00:00]} 3. c3 {[%emt 0:03:30]} Bg7 {[%emt 0:00:00]} 4. d4 {[%emt 0:00:30]} Qc7 {[%emt 0:04:30]} 5. d5 {[%emt 0:06:30]} d6 {[%emt 0:00:00]} 6. e4 {[%emt 0:00:30]} Nf6 {[%emt 0:00:00]} 7. Ne2 {[%emt 0:00:30]} O-O {[%emt 0:00:30]} 8. O-O {[%emt 0:01:30]} Nbd7 {[%emt 0:17:30]} 9. c4 {[%emt 0:03:30]} a6 {[%emt 0:01:30]} 10. a4 {[%emt 0:03:30]} Rb8 {[%emt 0:03:30]} 11. Nbc3 {[%emt 0:02:30]} e6 {[%emt 0:02:30]} 12. dxe6 {[%emt 0:04:30]} fxe6 {[%emt 0:00:00]} 13. f4 {[%emt 0:01:30]} Nb6 {[%emt 0:08:00]} 14. b3 {[%emt 0:02:30]} Bd7 {[%emt 0:00:30]} 15. h3 {[%emt 0:04:30]} Bc6 {[%emt 0:00:30]} 16. Be3 {[%emt 0:00:30]} Rfd8 {[%emt 0:06:30]} 17. Qc2 {[%emt 0:08:30]} Nbd7 {[%emt 0:09:30]} 18. g4 {[%emt 0:03:30]} Kh8 {[%emt 0:08:30]} 19. Rad1 {[%emt 0:00:30]} Nf8 $16 {[%emt 0:02:30]} 20. Ng3 {[%emt 0:02:30]} h6 {[%emt 0:03:30]} 21. Rd3 {[%emt 0:02:30]} e5 {[%emt 0:00:00]} 22. f5 {[%emt 0:00:30]} g5 {[%emt 0:04:00]} 23. Rfd1 {[%emt 0:00:30]} N8h7 {[%emt 0:04:30]} 24. Qd2 {[%emt 0:00:30]} Qa5 {[%emt 0:02:30]} 25. Na2 {[%emt 0:04:30]} Qxd2 {[%emt 0:00:30]} 26. R3xd2 {[%emt 0:00:30]} Rdc8 {[%emt 0:00:30]} 27. Rxd6 {[%emt 0:00:30]} Bf8 {[%emt 0:00:30]} 28. Re6 {[%emt 0:00:30]} Rd8 {[%emt 0:00:30]} 29. Re1 {[%emt 0:00:30]} Bd7 {[%emt 0:00:30]} 30. Rb6 {[%emt 0:00:30]} Bc6 {[%emt 0:00:30]} 31. Nc1 {[%emt 0:00:30]} Nd7 {[%emt 0:00:30]} 32. Rxc6 {[%emt 0:00:30]} bxc6 {[%emt 0:00:30]} 33. a5 {[%emt 0:00:30]} Ndf6 {[%emt 0:00:30]} 34. Bf3 {[%emt 0:00:30]} Rd7 {[%emt 0:00:30]} 35. Kf1 {[%emt 0:00:30]} Be7 {[%emt 0:00:30]} 36. Rd1 {[%emt 0:16:30]} Rbd8 {[%emt 0:06:01]} 37. Ke1 {[%emt 0:00:00]} Nf8 {[%emt 0:01:09]} 38. Bd2 {[%emt 0:00:00]} Rb8 {[%emt 0:00:54]} 39. Ke2 {[%emt 0:01:30]} Rbd8 {[%emt 0:00:15]} 40. Ke3 {[%emt 0:00:00]} Rd6 {[%emt 0:00:00]} 41. Be2 {[%emt 0:03:00]} Rb8 {[%emt 0:03:41]} 42. Bd3 {[%emt 0:00:30]} Rd7 {[%emt 0:01:30]} 43. Bc3 {[%emt 0:00:30]} Bd6 {[%emt 0:00:30]} 44. Bc2 {[%emt 0:00:00]} Bc7 {[%emt 0:00:30]} 45. Nd3 {[%emt 0:00:00]} Rbd8 {[%emt 0:01:30]} 46. Ra1 {[%emt 0:01:30]} Re7 {[%emt 0:02:30]} 47. Nxc5 {[%emt 0:00:30]} Ra8 {[%emt 0:00:30]} 48. b4 {[%emt 0:00:30]} Bd6 {[%emt 0:01:30]} 49. Nd3 {[%emt 0:00:30]} N8d7 {[%emt 0:01:30]} 50. c5 {[%emt 0:01:30]} Bc7 {[%emt 0:01:30]} 51. Ba4 {[%emt 0:00:00]} Nb8 {[%emt 0:00:00]} 52. Nb2 {[%emt 0:00:00]} Ra7 {[%emt 0:02:00]} 53. Nc4 {[%emt 0:00:00]} Kg7 {[%emt 0:00:00]} 54. Rd1 {[%emt 0:01:00]} Kf7 {[%emt 0:01:00]} 55. Kf3 {[%emt 0:00:30]} Kg7 {[%emt 0:00:30]} 56. Nh1 {[%emt 0:01:30]} Nfd7 {[%emt 0:02:30]} 57. Ng3 {[%emt 0:00:30]} Nf6 {[%emt 0:00:00]} 58. Rh1 {[%emt 0:03:30]} Rd7 {[%emt 0:00:00]} 59. Bc2 {[%emt 0:00:30]} Re7 {[%emt 0:00:00]} 60. h4 {[%emt 0:00:30]} gxh4 {[%emt 0:00:00]} 61. Rxh4 {[%emt 0:00:30]} Nh7 {[%emt 0:00:30]} 62. Ba4 {[%emt 0:00:30]} Ng5+ {[%emt 0:00:30]} 63. Ke3 {[%emt 0:00:00]} Nf7 {[%emt 0:00:30]} 64. Nh5+ {[%emt 0:00:00]} Kh7 {[%emt 0:00:00]} 65. Rh1 {[%emt 0:00:30]} Bd8 {[%emt 0:00:00]} 66. Rd1 {[%emt 0:02:30]} Re8 {[%emt 0:00:30]} 67. Ke2 {[%emt 0:01:30]} Bg5 {[%emt 0:00:30]} 68. Ng3 {[%emt 0:01:30]} Rc7 {[%emt 0:00:30]} 69. Nh1 {[%emt 0:00:30]} Nd7 {[%emt 0:00:30]} 70. Rxd7 {[%emt 0:00:00]} Rxd7 {[%emt 0:00:00]} 71. Bxc6 {[%emt 0:00:00]} Rde7 {[%emt 0:00:00]} 72. Bxe8 {[%emt 0:00:30]} Rxe8 {[%emt 0:00:00]} 73. Nf2 {[%emt 0:00:30]} Bf6 {[%emt 0:00:00]} 74. Nd3 {[%emt 0:00:00]} Ng5 {[%emt 0:00:30]} 75. Nd6 {[%emt 0:00:00]} Re7 {[%emt 0:00:00]} 76. Ke3 {[%emt 0:01:30]} Kg8 {[%emt 0:00:00]} 77. b5 {[%emt 0:01:30]} axb5 {[%emt 0:00:00]} 78. Nb4 {[%emt 0:00:30]} Rc7 {[%emt 0:00:00]} 79. c6 {[%emt 0:00:30]} Be7 {[%emt 0:00:30]} 80. Bxe5 {[%emt 0:00:00]} 1-0